Cogmind - Beta 10.2 @@@ ROGUE MODE // 2021.01.02 @ 00:09:03 Player: Wyvric Result: Heading to fleet! Performance ------------- Evolutions (9) 4500 Regions Visited (32) 6400 Robots Destroyed (386) 1930 Value Destroyed (24164) 24164 Prototype IDs (16) 320 Alien Tech Used (7) 1400 Bonus (16727) 16727 TOTAL SCORE: 55441 Bonus ------- High Alert Combat Kills 2901 Follower Combat Kills 3110 Entered Garrisons 2000 Used RIF Installer 5000 Met Zhirov 300 Used Core Reset Matrix 3000 Win 3000 Friendly Fire -2584 Cogmind --------- Core Integrity 960/1600 Matter 220/300 Energy 144/1600 System Corruption 0% Temperature Cool (297) Movement Treading (190) Ox1 Location To Fleet Rendezvous Parts ------- > --- POWER (2) -------- Quantum Reactor Quantum Reactor > --- PROPULSION (4) --- Advanced Heavy Siege Treads Advanced Heavy Siege Treads > --- UTILITY (15) ----- Advanced Coolant Injector Large Storage Unit Large Storage Unit Large Storage Unit High-capacity Storage Unit High-capacity Storage Unit Experimental Energy Well Experimental Terrain Scanner Advanced Terrain Scan Processor Advanced Target Analyzer Advanced Thermal Shield Hacking Suite Improved Dynamic Insulation System > --- WEAPON (4) ------- Core Cannon Core Cannon > --- INVENTORY (38) --- Light Antimatter Reactor Armored Medium Treads Armored Medium Treads Armored Medium Treads Armored Medium Treads Centrium Heavy Treads Biometal Heavy Treads Advanced Heavy Siege Treads Advanced Heavy Siege Treads Matter Compressor (250) Quantum Capacitor Long-range Tractor Beam High-powered Transdimensional Reconstructor Matter Drive Enhanced Quantum Rifle Enhanced Nova Cannon Enhanced Nova Cannon Enhanced Nova Cannon Railgun Railgun Hypervelocity Railgun Hypervelocity Multirail Graviton Cannon Faulty Hellfire Missile Launcher Advanced Remote Datajack Advanced Remote Datajack Enhanced Force Lance Peak State ------------ > --- POWER ------------ Quantum Reactor Quantum Reactor > --- PROPULSION ------- Advanced Heavy Siege Treads Advanced Heavy Siege Treads > --- UTILITY ---------- Advanced Coolant Injector Large Storage Unit Large Storage Unit Large Storage Unit High-capacity Storage Unit High-capacity Storage Unit Experimental Energy Well Experimental Terrain Scanner Advanced Terrain Scan Processor Advanced Target Analyzer Advanced Thermal Shield Hacking Suite Improved Dynamic Insulation System > --- WEAPON ----------- Core Cannon Core Cannon > --- INVENTORY -------- Light Antimatter Reactor Armored Medium Treads Armored Medium Treads Armored Medium Treads Armored Medium Treads Centrium Heavy Treads Biometal Heavy Treads Advanced Heavy Siege Treads Advanced Heavy Siege Treads Matter Compressor Quantum Capacitor Long-range Tractor Beam High-powered Transdimensional Reconstructor Matter Drive Enhanced Quantum Rifle Enhanced Nova Cannon Enhanced Nova Cannon Enhanced Nova Cannon Railgun Railgun Hypervelocity Railgun Hypervelocity Multirail Graviton Cannon Hellfire Missile Launcher Advanced Remote Datajack Advanced Remote Datajack Enhanced Force Lance [Rating: 192] Favorites ----------- Power Light Antimatter Reactor Engine Light Angular Momentum Engine Power Core Light Nuclear Core Reactor Light Antimatter Reactor Propulsion Light Treads Treads Light Treads Leg Carbon-fiber Leg Wheel Centrium Wheel Utility High-capacity Storage Unit Device Experimental Terrain Scanner Storage High-capacity Storage Unit Processor Advanced Terrain Scan Processor Hackware Relay Coupler [NC] Protection Reactive Plating Artifact Matter Drive Weapon Linear Accelerator Energy Gun Lightning Gun Energy Cannon EM Pulse Cannon Ballistic Gun Railgun Ballistic Cannon Linear Accelerator Launcher Improved Grenade Launcher Special Weapon Improved Remote Datajack Slashing Weapon Makeshift Axe Piercing Weapon Enhanced Force Lance Special Melee Weapon Improved Datajack Build | -11 -10 -10 -9 -9 -9 -8 -8 -8 -8 -8 -7 -7 -7 -7 -6 -6 -5 -5 -4 -4 -4 -4 -4 -4 -3 -3 -3 -3 -2 -2 -2 -1 ------- Run | Scr Mat Min Mat Min Exi Min Mat Gar Mat Gar Fac Gar Fac Gar Fac Gar Fac Gar Fac Ext Cet Arc Hub Gar Res Gar Qua Gar Res Tes Gar Acc Slots Evolved 18 | . . . 2 . . . 2 . . . 2 . . . 2 . 2 . 2 . . . . . 2 . . . 2 . . 2 Power 1 | . . . . . . . . . . . . . . . . . . . . . . . . . . . . . . . . 1 Propulsion 2 | . . . . . . . . . . . . . . . 1 . . . . . . . . . 1 . . . . . . . Utility 13 | . . . 2 . . . 2 . . . 2 . . . . . 2 . 2 . . . . . . . . . 2 . . 1 Weapon 2 | . . . . . . . . . . . . . . . 1 . . . . . . . . . 1 . . . . . . . Parts Attached 1001 | 6 8 3 22 3 2 9 19 17 10 16 7 5 6 17 19 31 29 53 110 81 9 7 24 42 16 33 72 44 94 30 47 110 Power 51 | 1 . . 2 1 . 2 2 1 2 1 . 1 . 1 2 2 1 5 4 3 . 1 . . . 1 3 3 4 1 3 4 Engine 15 | 1 . . 2 1 . 1 2 . 1 1 . . . . 2 2 . 2 . . . . . . . . . . . . . . Core 10 | . . . . . . 1 . 1 1 . . 1 . 1 . . 1 3 1 . . . . . . . . . . . . . Reactor 26 | . . . . . . . . . . . . . . . . . . . 3 3 . 1 . . . 1 3 3 4 1 3 4 Propulsion 88 | 2 2 . 5 . . 3 4 2 . 3 . . . 3 1 8 2 13 14 6 . . 1 1 1 . 2 . 5 2 4 4 Treads 59 | . 2 . 5 . . 3 4 2 . 3 . . . 3 1 1 2 4 4 5 . . 1 1 1 . 2 . 5 2 4 4 Leg 25 | 2 . . . . . . . . . . . . . . . 7 . 9 7 . . . . . . . . . . . . . Wheel 4 | . . . . . . . . . . . . . . . . . . . 3 1 . . . . . . . . . . . . Hover . | . . . . . . . . . . . . . . . . . . . . . . . . . . . . . . . . . Flight . | . . . . . . . . . . . . . . . . . . . . . . . . . . . . . . . . . Utility 497 | 1 3 . 4 2 2 2 5 5 2 1 6 2 4 3 12 9 10 17 46 45 7 2 18 30 10 18 39 29 47 19 30 67 Device 268 | . 1 . . . . . 2 2 . . 1 2 1 . 8 1 2 7 23 27 3 2 11 12 4 7 23 18 29 17 18 47 Storage 38 | 1 2 . 1 1 2 1 1 2 2 . 3 . . . 1 2 . 1 1 4 1 . . 3 . . . . . 2 1 6 Processor 20 | . . . . . . 1 . . . . 1 . . . 1 . . . 5 2 1 . . . . . 2 . 3 . 2 2 Hackware 52 | . . . . . . . . . . . 1 . 3 . . 3 6 3 10 3 . . 2 1 . 3 4 2 5 . 3 3 Protection 114 | . . . 3 1 . . 2 1 . 1 . . . 3 2 3 2 6 7 9 2 . 5 14 6 8 10 8 9 . 6 6 Artifact 5 | . . . . . . . . . . . . . . . . . . . . . . . . . . . . 1 1 . . 3 Weapon 365 | 2 3 3 11 . . 2 8 9 6 11 1 2 2 10 4 12 16 18 46 27 2 4 5 11 5 14 28 12 38 8 10 35 Energy Gun 6 | 1 . . . . . . . . . . . . . . 1 . . 4 . . . . . . . . . . . . . . Energy Cannon 38 | . . . 5 . . . 6 4 3 4 . . . 1 1 . . . 3 5 1 . . . . . 1 . . . . 4 Ballistic Gun 91 | 1 3 . 6 . . 1 . . 1 2 . . . . . . . 5 14 7 1 3 2 2 . . . . 17 6 7 13 Ballistic Cannon 67 | . . 3 . . . . . . . . . . . 3 1 7 6 2 6 3 . . . 6 3 7 10 6 3 1 . . Launcher 26 | . . . . . . 1 . 4 . 4 . 1 . 5 . . 1 . 1 1 . 1 . 1 . 1 . 2 . . . 3 Special Weapon 64 | . . . . . . . . . . . . . . . . 4 5 4 12 6 . . 1 1 . 5 7 3 8 . 2 6 Impact Weapon . | . . . . . . . . . . . . . . . . . . . . . . . . . . . . . . . . . Slashing Weapon 60 | . . . . . . . 2 1 2 1 . 1 1 1 1 . 2 2 10 5 . . 2 1 2 1 10 1 10 1 1 2 Piercing Weapon 7 | . . . . . . . . . . . . . . . . . . . . . . . . . . . . . . . . 7 Special Melee Weapon 6 | . . . . . . . . . . . 1 . 1 . . 1 2 1 . . . . . . . . . . . . . . Unidentified Prototypes 15 | . . . 2 . . . . . . . . . . . . . . 1 2 . 1 . . 1 . . 1 . 2 4 . 1 Parts Lost 98 | . 3 . 1 . . 3 1 4 . 3 . . . 3 . 6 2 7 21 1 . 3 1 4 . 1 7 1 7 1 11 7 Power 15 | . . . . . . 1 1 2 . 1 . . . . . 1 . . 2 . . 1 . . . . 2 1 2 . 1 . Propulsion 26 | . 1 . . . . 2 . 1 . 1 . . . . . 4 2 2 6 . . . . . . . 2 . 2 1 2 . Utility 28 | . . . . . . . . . . . . . . 2 . . . 1 6 . . . . 3 . 1 2 . 2 . 6 5 Weapon 29 | . 2 . 1 . . . . 1 . 1 . . . 1 . 1 . 4 7 1 . 2 1 1 . . 1 . 1 . 2 2 Highest Loss Streak 7 | . 3 . 1 . . 1 1 2 . 3 . . . 3 . 3 2 2 5 1 . 3 1 3 . 1 2 1 2 1 7 2 Average Slot Usage (%) 94 | . 96 100 98 99 96 87 89 92 99 97 93 99 99 95 100 97 98 98 95 97 94 91 93 92 89 89 89 88 91 91 86 89 Engine 3 | . 14 14 11 11 11 9 3 1 6 8 7 4 . . 5 5 3 1 . . . . . . . . . . . . . . Core 1 | . . . . . . 1 4 5 2 . . 2 7 7 . . 1 3 1 . . . . . . . . . . . . . Reactor 2 | . . . . . . . . . . . . . . . . . . . 2 4 5 4 5 5 4 3 3 3 3 4 3 8 Treads 11 | . 9 28 21 22 22 21 18 18 18 17 15 15 15 15 20 2 . 4 5 6 10 10 10 10 9 9 8 9 9 8 10 8 Leg 3 | . 18 . . . . . . . . . . . . . . 16 16 10 6 . . . . . . . . . . . . . Device 4 | . . . . . . . 4 8 9 9 9 7 4 . 5 . . 2 4 5 1 1 8 2 5 . 3 4 9 6 8 14 Storage 30 | . 24 28 32 43 40 33 35 36 36 36 31 38 38 38 33 36 35 34 31 26 29 31 31 26 28 28 28 28 22 22 19 21 Processor 4 | . . . . . . . . . . . 4 7 2 . 5 4 . . 6 11 19 21 11 5 4 4 7 9 12 15 8 8 Hackware 8 | . . . . . . . . . . . 1 7 15 11 . 5 17 18 15 17 9 5 9 4 4 12 14 11 11 14 9 11 Protection 3 | . . . 10 . . . 5 4 9 9 5 . . 6 6 2 2 1 2 . 2 3 1 21 13 9 1 . 1 . 6 2 Energy Cannon 1 | . . . 10 . . . 14 10 16 6 7 3 . 2 4 . . . 1 1 . . . . . . . . . . . . Ballistic Gun 7 | . 27 10 11 22 22 21 2 . . 1 . . . . . . . 6 5 7 14 12 8 8 . . . . 9 16 16 13 Ballistic Cannon 5 | . . 17 . . . . . . . . . . . 3 4 15 13 2 2 3 . . . 5 18 18 12 14 3 . . . Slashing Weapon 1 | . . . . . . . 1 . . 6 5 5 5 3 5 . 1 2 2 1 . . 4 . . . 2 2 1 . . . Naked Turns . | . . . . . . . . . . . . . . . . . . . . . . . . . . . . . . . . . Heaviest Build 272 | 11 71 75 117 125 138 139 167 162 160 160 156 145 143 170 177 207 205 195 222 206 199 203 210 259 272 272 241 249 249 187 200 217 Greatest Support 160 | 20 40 40 40 40 40 40 46 46 46 46 40 40 40 40 62 62 45 73 97 98 98 98 105 110 160 160 160 155 155 150 135 160 Greatest Overweight (x) 12 | . 3 1 5 3 3 3 4 3 3 6 3 3 3 4 2 6 5 12 8 7 2 2 2 2 1 1 1 1 1 1 7 1 Average Overweight (x) 2 | . 1 1 1 2 2 3 3 2 3 3 3 3 3 3 2 3 4 3 3 5 1 1 1 1 1 1 1 1 1 1 1 1 Largest Inventory Capacity 54 | 6 20 20 28 34 38 38 44 54 36 36 44 40 40 40 40 54 48 48 50 50 48 48 48 48 48 48 48 48 48 40 40 38 Average Capacity 40 | 5 16 20 27 33 35 37 43 38 34 36 36 40 40 40 38 41 48 47 49 42 46 48 48 42 48 48 48 48 43 40 36 36 Most Carried 51 | 6 18 20 28 29 36 38 44 44 35 36 40 40 40 40 39 51 48 48 50 47 48 47 44 47 48 48 48 48 48 40 40 38 Average Carried 38 | 4 11 19 26 28 33 36 41 37 34 35 35 40 39 39 37 40 47 46 47 41 46 46 42 41 46 47 47 47 42 39 25 34 Final Capacity 50 | 6 20 20 28 34 38 38 44 34 36 36 40 40 40 40 38 48 48 48 50 42 48 48 48 48 48 48 48 48 40 40 26 38 Final Carried 48 | 6 18 20 28 29 36 37 43 34 35 35 40 40 40 40 38 48 43 48 45 42 47 44 41 46 48 48 48 48 39 40 26 33 Class Distribution -------------------- 34% | Botlord-Mutant 24% | Hauler-Mutant 15% | Botlord-Gunner 11% | Botlord-Tank 7% | Bothacker-Mutant Dominant Class ---------------- Hauler-Mutant | -10/Materials Hauler-Mutant | -10/Mines Hauler-Mutant | -9/Materials Hauler-Mutant | -9/Mines Hauler-Mutant | -9/Exiles Hauler-Mutant | -8/Mines Hauler-Mutant | -8/Materials Hauler-Mutant | -8/Garrison Hauler-Mutant | -8/Materials Bothacker-Mutant | -8/Garrison Bothacker-Mutant | -7/Factory Bothacker-Mutant | -7/Garrison Bothacker-Mutant | -7/Factory Bothacker-Mutant | -7/Garrison Botlord-Mutant | -6/Factory Botlord-Mutant | -6/Garrison Botlord-Mutant | -5/Factory Botlord-Mutant | -5/Garrison Botlord-Mutant | -4/Factory Botlord-Gunner | -4/Extension Botlord-Gunner | -4/Cetus Botlord-Mutant | -4/Archives Botlord-Mutant | -4/Hub_04(d) Botlord-Tank | -4/Garrison Botlord-Tank | -3/Research Botlord-Tank | -3/Garrison Botlord-Mutant | -3/Quarantine Botlord-Mutant | -3/Garrison Botlord-Mutant | -2/Research Botlord-Gunner | -2/Testing Botlord-Tank | -2/Garrison Botlord-Mutant | -1/Access Resources | -11 -10 -10 -9 -9 -9 -8 -8 -8 -8 -8 -7 -7 -7 -7 -6 -6 -5 -5 -4 -4 -4 -4 -4 -4 -3 -3 -3 -3 -2 -2 -2 -1 ----------- Run | Scr Mat Min Mat Min Exi Min Mat Gar Mat Gar Fac Gar Fac Gar Fac Gar Fac Gar Fac Ext Cet Arc Hub Gar Res Gar Qua Gar Res Tes Gar Acc Matter Collected 21759 | 248 137 55 284 142 20 239 160 343 209 261 . 100 . 481 100 843 367 1182 1722 1322 237 . 325 1180 280 796 1627 1213 2287 987 1959 2653 Remotely 10359 | . . . . . . . . . . . . 95 . . . . 180 . 610 282 78 . 229 559 . 345 915 674 1756 765 1375 2496 Salvage Created 19730 | . 223 79 741 139 . 310 468 331 287 517 . 17 . 405 100 427 145 976 1547 531 135 740 292 870 64 265 984 624 1794 826 1797 4096 Parts 842 | . 12 8 53 6 . 15 21 11 16 29 . 3 . 20 9 9 6 37 68 16 4 16 6 46 2 9 44 13 85 37 79 162 Haulers Intercepted . | . . . . . . . . . . . . . . . . . . . . . . . . . . . . . . . . . Recyclers Shooed 11 | . 1 . 1 . . . . . . . . . . . . . 2 . 7 . . . . . . . . . . . . . Parts Field Recycled 124 | . . . . . . . . . . . . . . . 16 22 . 51 15 14 . . 6 . . . . . . . . . Retrieved Matter 1155 | . . . . . . . . . . . . . . . 193 164 . 363 149 199 . . 87 . . . . . . . . . Parts Self-Destructed . | . . . . . . . . . . . . . . . . . . . . . . . . . . . . . . . . . Prevented . | . . . . . . . . . . . . . . . . . . . . . . . . . . . . . . . . . Kills | -11 -10 -10 -9 -9 -9 -8 -8 -8 -8 -8 -7 -7 -7 -7 -6 -6 -5 -5 -4 -4 -4 -4 -4 -4 -3 -3 -3 -3 -2 -2 -2 -1 ------- Run | Scr Mat Min Mat Min Exi Min Mat Gar Mat Gar Fac Gar Fac Gar Fac Gar Fac Gar Fac Ext Cet Arc Hub Gar Res Gar Qua Gar Res Tes Gar Acc Combat Hostiles Destroyed 355 | . 7 2 18 4 . 9 8 11 7 15 . 4 . 14 3 11 4 14 22 7 1 17 4 19 2 4 19 15 25 9 26 54 Melee 17 | . . . . . . . 2 . . 1 . . . . 2 . . . 2 1 . . 1 . . 1 4 1 2 . . . Guns 158 | . 7 . 8 4 . 8 . . 2 . . . . . . . . 9 11 3 1 2 3 7 . . . . 16 9 26 42 Cannons 100 | . . 2 9 . . . 6 1 4 2 . . . 3 1 10 3 2 9 3 . . . 9 2 2 14 7 6 . . 5 AOE 72 | . . . 1 . . 1 . 10 . 8 . 4 . 11 . 1 1 1 . . . 15 . 3 . 1 1 7 . . . 7 Classes Destroyed 18 | . 2 1 2 . . 1 2 . . . . . . . 1 . 1 1 1 1 . 1 . . . . . . 2 . . 2 Worker 8 | . . . . . . . 1 . . . . . . . 1 . . . 4 . . . . . . . 1 . . . . 1 Builder 1 | . . . . . . . . . . . . . . . . . . . . . . . . . . . . . 1 . . . Recycler 7 | . . . . . . . . . . . . . . . . . . . 3 . . . . . . . . . . 1 . 3 Carrier 1 | . . . . . . . . . . . . . . . . . . . . . . . . . . . . . . . . 1 Mechanic 2 | . . . . . . . . . . . . . . . . . . . . . . . . . . . . . . . . 2 Operator 1 | . . . 1 . . . . . . . . . . . . . . . . . . . . . . . . . . . . . Watcher 3 | . . . . . . . . . . . . . . . . . 1 . 1 . . . . . . . . . 1 . . . Swarmer 64 | . 3 . 4 2 . 3 . 4 3 4 . 4 . 6 . . . . . . . . . 7 . . . . . . 10 14 Saboteur 1 | . . . . . . . . . . . . . . . . . . . . . . . . . . . . . 1 . . . Grunt 145 | . 4 . 10 1 . 4 4 5 2 9 . . . 3 . 9 1 10 5 3 . 6 3 8 . 3 7 9 10 1 6 22 Brawler 12 | . . . 1 1 . 1 . . . . . . . 3 . 1 . 1 . . . . . . . . . . . . 2 2 Duelist 8 | . . . . . . 1 . . . . . . . . . . . . 2 . . . . . . . . 1 1 . 1 2 Protector 5 | . . . . . . . . . . . . . . . . . . . . . . 3 . . . . . . . . . 2 Sentry 43 | . . 2 3 . . . 3 2 2 2 . . . 1 1 . 1 3 1 2 . 6 . 1 2 . . 1 3 2 4 1 Specialist 3 | . . . . . . . . . . . . . . . . . . 1 . . . . . . . . . . . 2 . . Hunter 16 | . . . . . . . 1 . . . . . . 1 1 . . 1 . 1 . 2 1 1 . 1 2 2 . . . 2 Programmer 59 | . . . . . . . . . . . . . . . 1 1 2 . 14 1 . . . 2 . 1 11 1 10 4 2 9 Behemoth 4 | . . . . . . . . . . . . . . . . . . . . 1 . . . . . . . 1 . . 1 1 Cetus Guard 1 | . . . . . . . . . . . . . . . . . . . . . 1 . . . . . . . . . . . Butcher 1 | . . . . . . . . . . . . . . . . . . . . . 1 . . . . . . . . . . . Guerrilla 1 | . . . . . . . . . . . . . . . . . . . . . . 1 . . . . . . . . . . Best Kill Streak 17 | . 5 2 4 2 . 3 3 4 4 10 . 4 . 7 2 2 3 2 7 2 1 17 3 6 1 3 3 5 5 5 7 15 Combat Bots Only 17 | . 5 2 4 2 . 3 3 4 4 10 . 4 . 7 1 2 2 2 5 2 1 17 3 6 1 3 3 5 5 5 7 12 Max Kills in Single Turn 8 | . 1 1 1 1 . 1 2 2 1 3 . 2 . 3 1 1 1 2 3 1 1 8 1 1 1 1 2 2 2 2 2 3 Gunslinging 1 | . . . . . . . . . . . . . . . . . . . . . . . . . . . . . 1 . . 1 Exploded 7 | . . . 1 . . 1 . 2 . 3 . 2 . 3 . 1 1 1 . . . 7 . 1 . 1 1 2 . . . 2 Melee 1 | . . . . . . . 1 . . 1 . . . . 1 . . . 1 1 . . 1 . . 1 1 1 1 . . . Uniques/NPCs Destroyed . | . . . . . . . . . . . . . . . . . . . . . . . . . . . . . . . . . Combat | -11 -10 -10 -9 -9 -9 -8 -8 -8 -8 -8 -7 -7 -7 -7 -6 -6 -5 -5 -4 -4 -4 -4 -4 -4 -3 -3 -3 -3 -2 -2 -2 -1 -------- Run | Scr Mat Min Mat Min Exi Min Mat Gar Mat Gar Fac Gar Fac Gar Fac Gar Fac Gar Fac Ext Cet Arc Hub Gar Res Gar Qua Gar Res Tes Gar Acc Damage Taken 38009 | . 492 137 912 44 . 824 659 737 249 744 . 112 143 1272 542 1351 893 2017 5877 1005 220 1448 1177 1858 136 599 3008 999 3929 845 2107 3673 Core 3350 | . 108 . 130 10 . 87 127 95 7 85 . . 26 136 28 104 180 271 503 157 . 214 81 32 . 36 146 74 196 132 122 263 Absorbed by Shields 3180 | . . . . . . . . . . . . . . . . 10 . 92 . 99 . . . . . . . 60 . 503 1253 1163 Reduced by Siege Mode 1000 | . . . . . . . . . . . . . . . . . . . 312 . . . 10 25 . 39 107 . 190 62 67 188 Core Remaining (%) 60 | 100 . 56 . . . 43 . . . 42 . . . 76 . 84 . 54 . . . . . 14 . . . 80 . . 61 60 Volleys Fired 936 | . 30 4 41 7 . 26 18 12 14 26 . 7 . 20 7 51 25 76 100 38 11 12 19 38 4 16 47 29 61 21 63 113 Largest 4 | . 2 2 2 2 . 2 2 2 2 2 . 1 . 2 3 3 3 3 3 3 3 3 3 3 4 4 4 4 4 4 4 4 Hottest 600 | . 40 70 136 46 . 46 136 126 126 126 . 36 . 105 144 144 144 175 171 208 99 99 101 198 264 264 303 264 264 140 155 600 Shots Fired 2227 | . 60 8 80 14 . 50 36 24 25 37 . 7 . 38 20 118 45 170 210 62 29 24 37 99 16 28 120 63 184 85 230 308 Gun 1282 | . 60 . 44 14 . 48 . . 2 . . . . . 1 10 . 132 112 23 28 18 27 63 . . . . 131 85 225 259 Cannon 701 | . . 8 36 . . . 36 6 23 25 . . . 22 19 101 30 22 68 28 1 . . 29 16 17 99 47 35 . . 33 Launcher 84 | . . . . . . 2 . 18 . 12 . 7 . 16 . . 2 . . . . 6 . 5 . 2 . 8 . . . 6 Special 160 | . . . . . . . . . . . . . . . . 7 13 16 30 11 . . 10 2 . 9 21 8 18 . 5 10 Kinetic 1731 | . 60 8 44 14 . 48 . . 2 . . . . 20 18 91 30 121 172 35 28 18 27 92 16 17 88 47 166 85 225 259 Thermal 101 | . . . 10 . . . 36 . . . . . . . . . . . . 10 1 . . . . . 11 . . . . 33 Explosive 71 | . . . . . . 2 . 18 . 7 . 7 . 8 . . 2 . . . . 6 . 5 . 2 . 8 . . . 6 Electromagnetic 164 | . . . 26 . . . . 6 23 30 . . . 10 2 20 . 33 8 6 . . . . . . . . . . . . Robot Hit Streak 55 | . 9 9 12 8 . 20 29 7 13 14 . 2 . 6 14 10 12 11 22 10 18 27 21 26 24 33 32 12 21 55 31 24 Robot Miss Streak 7 | . 5 . 2 1 . 2 1 1 1 1 . 1 . 3 1 3 5 6 4 3 2 1 1 4 . 1 2 2 2 1 7 5 Penetration Max 2 | . . . . . . . . . . . . . . . . . . 1 2 1 1 . 1 1 . . . . 1 1 2 2 Secondary Targets 41 | . 2 . 2 1 . 2 . . . . . . . . . . . 1 3 . . 2 . 3 . . . . 5 1 10 9 Max Gunslinging Chain 1 | . 1 . 1 1 . 1 . . . . . . . . . . . 1 1 . . 1 . 1 . . . . 1 1 1 1 Capacitor 25 | . . . . . . . . . . . . . . . . . . . . . . . . . . . . . . . . 25 Shots Hit Robots 1635 | . 40 7 39 10 . 41 37 19 20 36 1 3 3 20 20 74 34 107 159 45 19 22 36 61 13 24 92 41 143 75 169 225 Core Hits 872 | . 15 4 22 5 . 16 12 29 8 23 . 4 . 26 6 25 15 51 94 15 11 47 11 55 5 9 32 34 64 25 61 148 Critical Hits 181 | . . 1 2 . . . 2 . . 1 . . . 1 . 2 1 3 11 3 . 3 2 3 2 2 5 2 17 7 44 67 Critical Kills 67 | . . . 1 . . . 1 . . . . . . . . . . . 2 2 . . 2 2 1 . 4 . 5 3 15 29 Critical Parts Destroyed 89 | . . 1 1 . . . 1 . . 1 . . . 1 . 2 1 2 9 . . 3 . 1 . 2 1 . 8 2 18 35 Melee Attacks 243 | . . . . . . . 15 10 2 7 2 . 8 8 12 1 15 2 38 5 . . 15 4 2 3 28 7 22 3 . 34 Impact . | . . . . . . . . . . . . . . . . . . . . . . . . . . . . . . . . . Slashing 207 | . . . . . . . 15 10 2 7 1 . 5 4 12 . 14 1 38 5 . . 15 4 2 3 28 7 22 3 . 9 Piercing 25 | . . . . . . . . . . . . . . . . . . . . . . . . . . . . . . . . 25 Sneak Attacks 16 | . . . . . . . . . . . . . . . 1 . . . 3 . . . 1 . . 3 6 2 . . . . Combat Hostiles 9 | . . . . . . . . . . . . . . . . . . . . . . . 1 . . 1 5 2 . . . . Follow-up Attacks . | . . . . . . . . . . . . . . . . . . . . . . . . . . . . . . . . . Damage Inflicted 56259 | . 284 116 878 141 . 787 887 1542 454 1740 . 440 35 1415 559 1671 930 2615 5003 1023 500 4003 873 2170 520 1285 4227 3687 3982 1887 4064 8541 Guns 21451 | . 284 . 443 141 . 601 . . 43 . . . . . . 72 . 2006 2135 345 500 411 706 1070 . . . . 2595 1861 4064 4174 Cannons 16611 | . . 116 396 . . . 596 23 411 575 . . . 225 360 1531 579 249 1980 586 . . . 816 520 450 2998 1048 1144 . . 2008 Explosions 14459 | . . . 39 . . 186 . 1231 . 1036 . 440 . 1190 . 68 306 360 418 . . 3592 . 284 . 406 303 2241 . . . 2359 Melee 3569 | . . . . . . . 291 288 . 129 . . 35 . 199 . . . 470 80 . . 147 . . 429 926 398 177 . . . Ramming 169 | . . . . . . . . . . . . . . . . . 45 . . 12 . . 20 . . . . . 66 26 . . Kinetic 32330 | . 284 116 443 141 . 601 . . 43 . . . . 225 360 1302 579 1738 3914 625 500 411 706 1886 520 450 2600 1048 3739 1861 4064 4174 Thermal 4078 | . . . 122 . . . 596 . . . . . . 43 . 68 . 360 99 198 . . . . . . 398 . . . . 2194 Explosive 13225 | . . . . . . 186 . 1231 . 722 . 440 . 1022 . . 306 . 319 . . 3592 . 284 . 406 303 2241 . . . 2173 Electromagnetic 2888 | . . . 313 . . . . 23 411 889 . . . 125 . 301 . 517 201 108 . . . . . . . . . . . . Impact . | . . . . . . . . . . . . . . . . . . . . . . . . . . . . . . . . . Slashing 3569 | . . . . . . . 291 288 . 129 . . 35 . 199 . . . 470 80 . . 147 . . 429 926 398 177 . . . Piercing . | . . . . . . . . . . . . . . . . . . . . . . . . . . . . . . . . . Highest Corruption 27 | . . . . . . . . . . . . . . . . . 4 4 27 24 . . 1 5 . 2 15 15 9 10 14 . Average Corruption 7 | . . . . . . . . . . . . . . . . . 3 4 11 11 . . 1 2 . 1 10 6 6 7 13 . Corruption Purged 64 | . . . . . . . . . . . . . . . . . . . 6 24 . . . 5 . 2 5 16 6 . . . Effects 561 | . . . . . . . . . . . . . . . . . 16 60 115 91 . . . 11 . 9 53 30 37 26 113 . Message Errors 101 | . . . . . . . . . . . . . . . . . 5 14 16 24 . . . 2 . 3 3 7 10 5 12 . Matter Fused 85 | . . . . . . . . . . . . . . . . . 1 13 16 19 . . . 2 . . 3 7 4 3 17 . Heat Flow Errors 54 | . . . . . . . . . . . . . . . . . 2 9 11 4 . . . 2 . 2 5 3 1 4 11 . Energy Discharges 49 | . . . . . . . . . . . . . . . . . 2 7 11 5 . . . . . 1 5 5 3 2 8 . Parts Rejected 6 | . . . . . . . . . . . . . . . . . 1 . 1 . . . . 1 . . 1 . 1 . 1 . Data Loss (minor) 59 | . . . . . . . . . . . . . . . . . 4 10 11 7 . . . 1 . . 9 3 . 1 13 . Data Loss (major) 18 | . . . . . . . . . . . . . . . . . . . 5 6 . . . . . . 1 1 2 . 3 . Misfires 19 | . . . . . . . . . . . . . . . . . . . 1 5 . . . . . . 5 2 1 2 3 . Alerts 7 | . . . . . . . . . . . . . . . . . . . 2 . . . . . . . 3 1 . . 1 . Misdirections 31 | . . . . . . . . . . . . . . . . . . . 5 11 . . . . . . 3 . . 1 11 . Targeting Errors 118 | . . . . . . . . . . . . . . . . . 1 7 31 9 . . . 3 . 3 13 1 14 7 29 . Weapon Failures 14 | . . . . . . . . . . . . . . . . . . . 5 1 . . . . . . 2 . 1 1 4 . Overload Shots . | . . . . . . . . . . . . . . . . . . . . . . . . . . . . . . . . . Overflow Damage 1871 | . . . . . . . 32 141 . 34 . 64 . 17 . 18 47 74 54 5 . 158 . 98 . 78 516 317 41 . . 177 Projectiles 359 | . . . . . . . 11 . . 13 . . . . . . 5 2 27 . . . . 51 . . 209 . 41 . . . Explosions 1030 | . . . . . . . . 79 . . . 64 . 17 . 18 37 72 27 . . 158 . 47 . 60 22 252 . . . 177 Melee 482 | . . . . . . . 21 62 . 21 . . . . . . 5 . . 5 . . . . . 18 285 65 . . . . Knockbacks 84 | . . . . . . . . . . . . . . . 3 12 8 5 14 2 . . . 2 . 1 22 6 9 . . . Impact . | . . . . . . . . . . . . . . . . . . . . . . . . . . . . . . . . . Kinetic 80 | . . . . . . . . . . . . . . . 3 12 8 5 14 2 . . . 2 . 1 20 6 7 . . . Secondary 4 | . . . . . . . . . . . . . . . . . . . . . . . . . . . 2 . 2 . . . Self-Inflicted Damage 1045 | . . . . . . 23 . 134 . 66 . 41 . 116 . . 12 143 197 . . . . . . . . 24 . . . 289 Shots 27 | . . . . . . 1 . 5 . 5 . 1 . 4 . . 1 2 3 . . . . . . . . 1 . . . 4 Rammed 11 | . . . . . . . . . . . . . . . . . . . . 1 . . 1 . . . . . 6 3 . . Targets Rammed 12 | . . . . . . . . . . . . . . . . . 1 . . 1 . . 1 . . . . . 6 3 . . Kicked 1 | . . . . . . . . . . . . . . . . . 1 . . . . . . . . . . . . . . . Crushed . | . . . . . . . . . . . . . . . . . . . . . . . . . . . . . . . . . Highest Temperature 484 | . 25 63 351 . . 12 357 33 63 54 . . . 484 279 225 135 274 301 398 48 12 99 306 188 357 282 457 275 252 198 410 Average Temperature 79 | . 10 36 97 . . 2 101 16 27 18 . . . 189 93 76 47 64 54 91 23 4 31 97 116 88 58 122 55 59 72 111 Received Heat Transfer 6228 | . 210 45 288 . . 252 180 198 72 351 . . 18 189 90 519 117 621 759 98 . 45 279 240 27 75 264 190 549 37 260 255 Effects 18 | . . . 1 . . . . . . . . . . 8 . . . . . . . . . 4 . . . 1 1 3 . . Shutdowns 2 | . . . . . . . . . . . . . . 2 . . . . . . . . . . . . . . . . . . Energy Bleed 3 | . . . . . . . . . . . . . . 1 . . . . . . . . . . . . . 1 1 . . . Interference 9 | . . . . . . . . . . . . . . 2 . . . . . . . . . 4 . . . . . 3 . . Damage (minor) 1 | . . . 1 . . . . . . . . . . . . . . . . . . . . . . . . . . . . . Damage (major) 3 | . . . . . . . . . . . . . . 3 . . . . . . . . . . . . . . . . . . Siege Activations 61 | . . . . . . . . . . . . . . . . . . . 2 . . 1 1 6 1 3 7 4 10 3 8 15 Total Turns 958 | . . . . . . . . . . . . . . . . . . . 42 . . 21 39 121 2 28 76 39 141 86 200 163 Longest Duration 50 | . . . . . . . . . . . . . . . . . . . 27 . . 21 39 30 2 19 23 24 27 50 46 26 Robots Corrupted 7 | . . . . . . . . . 1 4 . . . . . . . 2 . . . . . . . . . . . . . . Combat Hostiles 7 | . . . . . . . . . 1 4 . . . . . . . 2 . . . . . . . . . . . . . . Parts Fried 14 | . . . . . . . . . 3 5 . . . . . 1 . 2 1 . . 1 . . . . . . . . . 1 Impact Corruptions 4 | . . . . . . . . . . . . . . . . . 1 . . 1 . . . . . . . . 2 . . . Robots Melted . | . . . . . . . . . . . . . . . . . . . . . . . . . . . . . . . . . Combat Hostiles . | . . . . . . . . . . . . . . . . . . . . . . . . . . . . . . . . . Parts Melted 9 | . . . . . . . 6 . . . . . . . . . . . . 2 . . . . . . . . . . 1 . Heat Transferred 3268 | . . . 198 . . . 1073 . . . . . . 50 . 50 . 324 100 300 . . . . . . 370 . . . . 803 Parts Sabotaged 1 | . . . . . . . . . . . . . . . . . . . . . . . . . . . 1 . . . . . Parts Stolen . | . . . . . . . . . . . . . . . . . . . . . . . . . . . . . . . . . Parts Stripped . | . . . . . . . . . . . . . . . . . . . . . . . . . . . . . . . . . Power Chain Reactions 6 | . . . 1 . . . . . . . . . . 1 . 1 . 2 1 . . . . . . . . . . . . . Missiles Intercepted . | . . . . . . . . . . . . . . . . . . . . . . . . . . . . . . . . . Alert | -11 -10 -10 -9 -9 -9 -8 -8 -8 -8 -8 -7 -7 -7 -7 -6 -6 -5 -5 -4 -4 -4 -4 -4 -4 -3 -3 -3 -3 -2 -2 -2 -1 ------- Run | Scr Mat Min Mat Min Exi Min Mat Gar Mat Gar Fac Gar Fac Gar Fac Gar Fac Gar Fac Ext Cet Arc Hub Gar Res Gar Qua Gar Res Tes Gar Acc Peak Influence 1283 | . 125 55 234 145 . 75 241 504 478 949 543 452 265 312 280 482 252 713 459 340 311 420 229 609 420 456 481 643 578 434 700 1283 Initial 497 | . . 5 . 89 . . . 92 245 310 497 380 237 45 163 1 252 131 373 142 141 124 136 160 342 315 228 171 361 276 175 420 Average 316 | . 53 9 102 59 . 41 95 399 339 737 505 410 247 168 149 318 70 400 255 175 242 257 125 388 389 386 300 406 438 304 510 774 Maximum Alert Level 4 | . . . 1 . . . 1 2 2 3 2 2 1 1 1 2 1 3 2 1 1 2 1 2 2 2 2 2 2 2 3 4 Low Security (%) 34 | 100 100 100 74 100 . 100 93 6 . . . . . 74 63 17 93 7 28 59 13 48 95 3 . . 14 22 . . 9 . Level 1 32 | . . . 25 . . . 6 31 73 14 . 55 99 25 36 43 6 39 65 40 86 48 4 63 55 39 72 24 34 92 24 2 Level 2 24 | . . . . . . . . 62 26 23 100 44 . . . 39 . 49 6 . . 2 . 33 44 60 12 53 65 7 32 30 Level 3 7 | . . . . . . . . . . 62 . . . . . . . 2 . . . . . . . . . . . . 33 58 Level 4 . | . . . . . . . . . . . . . . . . . . . . . . . . . . . . . . . . 8 Level 5 . | . . . . . . . . . . . . . . . . . . . . . . . . . . . . . . . . . High Security . | . . . . . . . . . . . . . . . . . . . . . . . . . . . . . . . . . Max Security . | . . . . . . . . . . . . . . . . . . . . . . . . . . . . . . . . . Squads Dispatched 57 | . . . 3 . . . 1 . . . 2 . . . 3 . 4 . 10 3 . . 5 . . . 7 . 6 2 . 11 Investigation 6 | . . . 1 . . . 1 . . . 1 . . . . . . . . 1 . . . . . . 1 . . . . 1 Extermination 18 | . . . . . . . . . . . 1 . . . 1 . 1 . 6 . . . 1 . . . 3 . 2 . . 3 Reinforcement 20 | . . . 2 . . . . . . . . . . . 2 . 1 . 2 2 . . 4 . . . 1 . 3 . . 3 Assault 9 | . . . . . . . . . . . . . . . . . 1 . 2 . . . . . . . 1 . 1 . . 4 Garrison 4 | . . . . . . . . . . . . . . . . . 1 . . . . . . . . . 1 . . 2 . . Intercept . | . . . . . . . . . . . . . . . . . . . . . . . . . . . . . . . . . Construction Impeded 3 | . . . . . . . . . . . . . . . . . . . 1 1 . . 1 . . . . . . . . . Haulers Reinforced . | . . . . . . . . . . . . . . . . . . . . . . . . . . . . . . . . . Stealth | -11 -10 -10 -9 -9 -9 -8 -8 -8 -8 -8 -7 -7 -7 -7 -6 -6 -5 -5 -4 -4 -4 -4 -4 -4 -3 -3 -3 -3 -2 -2 -2 -1 --------- Run | Scr Mat Min Mat Min Exi Min Mat Gar Mat Gar Fac Gar Fac Gar Fac Gar Fac Gar Fac Ext Cet Arc Hub Gar Res Gar Qua Gar Res Tes Gar Acc Distress Signals 31 | . 2 . . . . . 3 . . . . . . . 2 . 5 . 3 3 1 . 2 . . . 2 . 3 1 . 4 Communications Jammed 79 | . . . . . . . . . . . . . . . . . . . . . . . 47 . . . 16 . 2 . . 14 Distress Signals 79 | . . . . . . . . . . . . . . . . . . . . . . . 47 . . . 16 . 2 . . 14 Times Spotted 724 | . 15 2 22 5 . 10 17 13 8 30 1 3 3 16 8 34 27 56 72 33 7 25 29 23 2 18 42 27 41 11 32 92 Peak Tracking Total 17 | . 3 2 5 3 . 3 6 4 4 5 1 2 1 10 3 8 8 5 7 8 5 17 12 6 1 10 9 7 5 6 5 8 Tactical Retreats 75 | . 1 . . . . 1 2 2 1 11 . . . 1 . 6 2 21 3 1 . . 3 6 . 1 1 . . . 4 8 Traps | -11 -10 -10 -9 -9 -9 -8 -8 -8 -8 -8 -7 -7 -7 -7 -6 -6 -5 -5 -4 -4 -4 -4 -4 -4 -3 -3 -3 -3 -2 -2 -2 -1 ------- Run | Scr Mat Min Mat Min Exi Min Mat Gar Mat Gar Fac Gar Fac Gar Fac Gar Fac Gar Fac Ext Cet Arc Hub Gar Res Gar Qua Gar Res Tes Gar Acc Traps Triggered 67 | . . . 1 . . . 1 1 . 5 . 2 2 1 . 10 2 8 . 2 . . . 5 1 7 6 . . 1 10 2 Indirectly . | . . . . . . . . . . . . . . . . . . . . . . . . . . . . . . . . . Trap Hack Attempts . | . . . . . . . . . . . . . . . . . . . . . . . . . . . . . . . . . Triggered . | . . . . . . . . . . . . . . . . . . . . . . . . . . . . . . . . . Disarmed . | . . . . . . . . . . . . . . . . . . . . . . . . . . . . . . . . . Reprogrammed . | . . . . . . . . . . . . . . . . . . . . . . . . . . . . . . . . . Reused . | . . . . . . . . . . . . . . . . . . . . . . . . . . . . . . . . . Traps Extracted . | . . . . . . . . . . . . . . . . . . . . . . . . . . . . . . . . . Installed . | . . . . . . . . . . . . . . . . . . . . . . . . . . . . . . . . . Triggered 1 | . . . . . . . . . . 1 . . . . . . . . . . . . . . . . . . . . . . Machines | -11 -10 -10 -9 -9 -9 -8 -8 -8 -8 -8 -7 -7 -7 -7 -6 -6 -5 -5 -4 -4 -4 -4 -4 -4 -3 -3 -3 -3 -2 -2 -2 -1 ---------- Run | Scr Mat Min Mat Min Exi Min Mat Gar Mat Gar Fac Gar Fac Gar Fac Gar Fac Gar Fac Ext Cet Arc Hub Gar Res Gar Qua Gar Res Tes Gar Acc Machines Disabled 57 | . . . 1 . . . . 2 . 1 . . . . 1 4 1 2 8 5 3 2 1 2 . 1 11 2 1 1 2 6 Max in Single Turn 4 | . . . 1 . . . . 1 . 1 . . . . 1 1 . 1 4 1 1 1 . 1 . 1 3 1 . 1 1 1 Garrison Access 4 | . . . . . . . . . . . . . . . . . 1 . . . . . . . . . . . . . . 3 Garrison Relay 15 | . . . . . . . . 2 . 1 . . . . . 4 . 2 . . . . . 2 . 1 . 2 . . 1 . Energy Cycler 1 | . . . . . . . . . . . . . . . . . . . . . . . . . . . . . . . . 1 Machines Sabotaged . | . . . . . . . . . . . . . . . . . . . . . . . . . . . . . . . . . Garrisons Compromised . | . . . . . . . . . . . . . . . . . . . . . . . . . . . . . . . . . Overloaded Fab Kills . | . . . . . . . . . . . . . . . . . . . . . . . . . . . . . . . . . Fab Network Shutdowns . | . . . . . . . . . . . . . . . . . . . . . . . . . . . . . . . . . Hacking | -11 -10 -10 -9 -9 -9 -8 -8 -8 -8 -8 -7 -7 -7 -7 -6 -6 -5 -5 -4 -4 -4 -4 -4 -4 -3 -3 -3 -3 -2 -2 -2 -1 --------- Run | Scr Mat Min Mat Min Exi Min Mat Gar Mat Gar Fac Gar Fac Gar Fac Gar Fac Gar Fac Ext Cet Arc Hub Gar Res Gar Qua Gar Res Tes Gar Acc Machines Accessed 88 | . 2 2 6 . . 1 3 . 3 . 2 . 1 . 3 . 5 . 7 11 2 . 7 . 4 . 11 . 3 1 . 14 Terminals 65 | . 2 1 5 . . 1 2 . 1 . . . . . 2 . 4 . 5 11 2 . 6 . 3 . 9 . . . . 11 Fabricators 3 | . . . . . . . . . . . 1 . . . . . . . 2 . . . . . . . . . . . . . Repair Stations . | . . . . . . . . . . . . . . . . . . . . . . . . . . . . . . . . . Recycling Units . | . . . . . . . . . . . . . . . . . . . . . . . . . . . . . . . . . Scanalyzers 6 | . . . 1 . . . . . 1 . . . . . . . . . . . . . . . . . 1 . 3 . . . Garrison Access 13 | . . . . . . . 1 . 1 . 1 . 1 . 1 . 1 . . . . . 1 . 1 . 1 . . 1 . 3 Total Hacks 183 | . 4 7 13 . . 2 7 . 7 . 7 . 2 . 9 . 8 . 18 21 6 . 19 . 5 . 19 . 4 2 . 23 Successful 95 | . 1 3 7 . . 1 5 . 5 . 5 . 2 . 5 . 4 . 8 8 4 . 11 . 2 . 11 . 2 1 . 10 Failed 88 | . 3 4 6 . . 1 2 . 2 . 2 . . . 4 . 4 . 10 13 2 . 8 . 3 . 8 . 2 1 . 13 Catastrophic 19 | . 1 1 1 . . . . . . . . . . . . . 1 . . 4 . . . . . . 5 . 1 . . 5 Database Lockouts . | . . . . . . . . . . . . . . . . . . . . . . . . . . . . . . . . . Manual 101 | . 2 6 8 . . 2 7 . 2 . 3 . . . 5 . 5 . 10 11 . . 18 . 1 . 11 . . 1 . 9 Terminals 137 | . 4 6 10 . . 2 6 . 2 . . . . . 7 . 7 . 11 21 6 . 18 . 3 . 16 . . . . 18 Fabricators 11 | . . . . . . . . . . . 4 . . . . . . . 7 . . . . . . . . . . . . . Repair Stations . | . . . . . . . . . . . . . . . . . . . . . . . . . . . . . . . . . Recycling Units . | . . . . . . . . . . . . . . . . . . . . . . . . . . . . . . . . . Scanalyzers 12 | . . . 3 . . . . . 4 . . . . . . . . . . . . . . . . . 1 . 4 . . . Garrison Access 22 | . . . . . . . 1 . 1 . 3 . 2 . 2 . 1 . . . . . 1 . 2 . 2 . . 2 . 5 Terminal Hacks 30 | . . 3 2 . . . 1 . . . . . . . 1 . 2 . 1 6 4 . 2 . . . 5 . . . . 3 Record 7 | . . . . . . . . . . . . . . . . . . . . . 4 . . . . . 3 . . . . . Part Schematic 2 | . . 1 . . . . . . . . . . . . . . . . . 1 . . . . . . . . . . . . Open Door 6 | . . 1 . . . . . . . . . . . . . . . . . 5 . . . . . . . . . . . . Level Access Points 1 | . . . . . . . . . . . . . . . . . . . . . . . 1 . . . . . . . . . Branch Access Points 5 | . . . 1 . . . . . . . . . . . 1 . . . 1 . . . . . . . 1 . . . . 1 Alert Level 1 | . . . 1 . . . . . . . . . . . . . . . . . . . . . . . . . . . . . Unreport Threat 5 | . . 1 . . . . . . . . . . . . . . 1 . . . . . . . . . 1 . . . . 2 Zone Layout 3 | . . . . . . . 1 . . . . . . . . . 1 . . . . . 1 . . . . . . . . . Fabricator Hacks 7 | . . . . . . . . . . . 2 . . . . . . . 5 . . . . . . . . . . . . . Load Schematic 3 | . . . . . . . . . . . 1 . . . . . . . 2 . . . . . . . . . . . . . Build 4 | . . . . . . . . . . . 1 . . . . . . . 3 . . . . . . . . . . . . . Repair Station Hacks . | . . . . . . . . . . . . . . . . . . . . . . . . . . . . . . . . . Recycling Unit Hacks . | . . . . . . . . . . . . . . . . . . . . . . . . . . . . . . . . . Scanalyzer 9 | . . . 3 . . . . . 3 . . . . . . . . . . . . . . . . . 1 . 2 . . . Insert Component 7 | . . . 2 . . . . . 2 . . . . . . . . . . . . . . . . . 1 . 2 . . . Analyze 2 | . . . 1 . . . . . 1 . . . . . . . . . . . . . . . . . . . . . . . Garrison Access Hacks 20 | . . . . . . . 1 . 1 . 2 . 2 . 2 . 1 . . . . . 1 . 2 . 2 . . 1 . 5 Unlock Access 11 | . . . . . . . 1 . 1 . 1 . 1 . 1 . 1 . . . . . 1 . 1 . 1 . . 1 . 1 Seal Access 3 | . . . . . . . . . . . . . . . . . . . . . . . . . . . . . . . . 3 Coupler Status 6 | . . . . . . . . . . . 1 . 1 . 1 . . . . . . . . . 1 . 1 . . . . 1 Unauthorized Hacks 29 | . 1 . 2 . . 1 3 . 1 . 1 . . . 2 . 1 . 2 2 . . 8 . . . 3 . . . . 2 Terminals 28 | . 1 . 2 . . 1 3 . 1 . . . . . 2 . 1 . 2 2 . . 8 . . . 3 . . . . 2 Track 5 | . . . . . . . 1 . . . . . . . 1 . . . . . . . 2 . . . 1 . . . . . Botnet 23 | . 1 . 2 . . 1 2 . 1 . . . . . 1 . 1 . 2 2 . . 6 . . . 2 . . . . 2 Fabricators . | . . . . . . . . . . . . . . . . . . . . . . . . . . . . . . . . . Repair Stations . | . . . . . . . . . . . . . . . . . . . . . . . . . . . . . . . . . Recycling Units . | . . . . . . . . . . . . . . . . . . . . . . . . . . . . . . . . . Scanalyzers . | . . . . . . . . . . . . . . . . . . . . . . . . . . . . . . . . . Garrison Access 1 | . . . . . . . . . . . 1 . . . . . . . . . . . . . . . . . . . . . Eject 1 | . . . . . . . . . . . 1 . . . . . . . . . . . . . . . . . . . . . Data Cores Recovered 1 | . . . 1 . . . . . . . . . . . . . . . . . . . . . . . . . . . . . Used . | . . . . . . . . . . . . . . . . . . . . . . . . . . . . . . . . . Hacking Detections 73 | . 2 1 6 . . 1 2 . 2 . 2 . 1 . 2 . 4 . 6 7 2 . 7 . 4 . 9 . 2 1 . 12 Full Trace Events 2 | . . . . . . . . . . . . . . . . . . . . . . . . . . . 1 . . . . 1 Feedback Events . | . . . . . . . . . . . . . . . . . . . . . . . . . . . . . . . . . Feedback Blocked . | . . . . . . . . . . . . . . . . . . . . . . . . . . . . . . . . . Robot Schematics Acquired . | . . . . . . . . . . . . . . . . . . . . . . . . . . . . . . . . . Robots Built . | . . . . . . . . . . . . . . . . . . . . . . . . . . . . . . . . . Matter . | . . . . . . . . . . . . . . . . . . . . . . . . . . . . . . . . . Time . | . . . . . . . . . . . . . . . . . . . . . . . . . . . . . . . . . Total Robot Build Rating . | . . . . . . . . . . . . . . . . . . . . . . . . . . . . . . . . . Part Schematics Acquired 4 | . . 1 1 . . . . . 1 . . . . . . . . . . 1 . . . . . . . . . . . . Parts Built 4 | . . . . . . . . . . . 1 . . . . . . . 3 . . . . . . . . . . . . . Matter 408 | . . . . . . . . . . . 102 . . . . . . . 306 . . . . . . . . . . . . . Time 204 | . . . . . . . . . . . 51 . . . . . . . 153 . . . . . . . . . . . . . Total Part Build Rating 4 | . . . . . . . . . . . 1 . . . . . . . 3 . . . . . . . . . . . . . Parts Repaired . | . . . . . . . . . . . . . . . . . . . . . . . . . . . . . . . . . Time . | . . . . . . . . . . . . . . . . . . . . . . . . . . . . . . . . . Parts Recycled . | . . . . . . . . . . . . . . . . . . . . . . . . . . . . . . . . . Recycled Matter . | . . . . . . . . . . . . . . . . . . . . . . . . . . . . . . . . . Retrieved Matter . | . . . . . . . . . . . . . . . . . . . . . . . . . . . . . . . . . Retrieved Components . | . . . . . . . . . . . . . . . . . . . . . . . . . . . . . . . . . Parts Scanalyzed 2 | . . . 1 . . . . . 1 . . . . . . . . . . . . . . . . . . . . . . . Part Schematics Acquired 2 | . . . 1 . . . . . 1 . . . . . . . . . . . . . . . . . . . . . . . Parts Damaged . | . . . . . . . . . . . . . . . . . . . . . . . . . . . . . . . . . Bothacking | -11 -10 -10 -9 -9 -9 -8 -8 -8 -8 -8 -7 -7 -7 -7 -6 -6 -5 -5 -4 -4 -4 -4 -4 -4 -3 -3 -3 -3 -2 -2 -2 -1 ------------ Run | Scr Mat Min Mat Min Exi Min Mat Gar Mat Gar Fac Gar Fac Gar Fac Gar Fac Gar Fac Ext Cet Arc Hub Gar Res Gar Qua Gar Res Tes Gar Acc Used RIF Installer 10 | . . . . . . . . 1 . 1 . 1 . 1 . 1 . 1 . . . . . 1 . 1 . 1 . . 1 . Coupler Efficiency 2 | . . . . . . . . . . . . . . 1 . . . . . . . . . 1 . . . . . . . . Command Fork 1 | . . . . . . . . . . . . . . . . 1 . . . . . . . . . . . . . . . . Threat Obfuscator 1 | . . . . . . . . . . . . 1 . . . . . . . . . . . . . . . . . . . . Signal Jammer 1 | . . . . . . . . . . . . . . . . . . . . . . . . . . . . . . . 1 . Robot Detection 1 | . . . . . . . . . . 1 . . . . . . . . . . . . . . . . . . . . . . Watcher Feeds 1 | . . . . . . . . . . . . . . . . . . 1 . . . . . . . . . . . . . . Structural Interface 1 | . . . . . . . . . . . . . . . . . . . . . . . . . . 1 . . . . . . Program Shield 1 | . . . . . . . . . . . . . . . . . . . . . . . . . . . . 1 . . . . Robots Hacked 118 | . . . . . . . . . . . 1 . 2 2 . 6 9 11 17 6 . . 7 2 . 7 14 5 16 . 4 9 Non-combat 25 | . . . . . . . . . . . . . . . . . 4 . 1 . . . 5 . . . 1 . 10 . . 4 Combat 93 | . . . . . . . . . . . 1 . 2 2 . 6 5 11 16 6 . . 2 2 . 7 13 5 6 . 4 5 Robot Hacks Applied 126 | . . . . . . . . . . . 1 . 2 2 . 6 12 11 19 6 . . 8 2 . 7 14 5 18 . 4 9 parse_system 1 | . . . . . . . . . . . . . . . . . 1 . . . . . . . . . . . . . . . drop_inventory 3 | . . . . . . . . . . . . . . . . . 1 . . . . . 1 . . . . . 1 . . . block_reporting 3 | . . . . . . . . . . . . . . . . . . . . . . . 2 . . . . . 1 . . . map_route 9 | . . . . . . . . . . . . . . . . . 3 . 1 . . . 1 . . . 1 . 1 . . 2 mark_security 1 | . . . . . . . . . . . . . . . . . 1 . . . . . . . . . . . . . . . find_garrison 3 | . . . . . . . . . . . . . . . . . 1 . . . . . . . . . 1 . 1 . . . link_fov 11 | . . . . . . . . . . . . . . . . . . . . . . . 1 . . . . . 8 . . 2 disrupt_area 1 | . . . . . . . . . . . . . . . . . . . . . . . . . . . . . 1 . . . amplify_resonance 4 | . . . . . . . . . . . . . . . . 1 . 2 . . . . . . . . . . . . . 1 reboot_system 7 | . . . . . . . . . . . . . . . . . 1 1 1 . . . 1 1 . . 1 1 . . . . go_dormant 1 | . . . . . . . . . . . . . . . . . . 1 . . . . . . . . . . . . . . overwrite_iff 44 | . . . . . . . . . . . . . . . . 2 2 2 11 3 . . . . . 5 6 3 2 . 4 4 formatsys_low 2 | . . . . . . . . . . . . . . . . . . . . . . . . . . . 2 . . . . . formatsys_high 36 | . . . . . . . . . . . 1 . 2 2 . 3 2 5 6 3 . . 2 1 . 2 3 1 3 . . . Relay Couplers Released 63 | . . . . . . . . 6 . 3 4 . . . . 16 . 7 . . . . . 8 . 4 4 8 . . 3 . Ejected 4 | . . . . . . . . . . . 4 . . . . . . . . . . . . . . . . . . . . . Machine Destruction 55 | . . . . . . . . 6 . 3 . . . . . 16 . 7 . . . . . 8 . 4 . 8 . . 3 . Programmers 4 | . . . . . . . . . . . . . . . . . . . . . . . . . . . 4 . . . . . Attached 47 | . . . . . . . . . . . 1 . 3 . . 3 6 3 9 2 . . 1 1 . 3 4 2 4 . 3 2 Robots Rewired 15 | . . . . . . . . . . . . . . . . . . . . 15 . . . . . . . . . . . . Allies Hacked 3 | . . . . . . . . . . . . . . . . . . . 1 . . . . . . . 2 . . . . . Hacks Repelled . | . . . . . . . . . . . . . . . . . . . . . . . . . . . . . . . . . Allies | -11 -10 -10 -9 -9 -9 -8 -8 -8 -8 -8 -7 -7 -7 -7 -6 -6 -5 -5 -4 -4 -4 -4 -4 -4 -3 -3 -3 -3 -2 -2 -2 -1 -------- Run | Scr Mat Min Mat Min Exi Min Mat Gar Mat Gar Fac Gar Fac Gar Fac Gar Fac Gar Fac Ext Cet Arc Hub Gar Res Gar Qua Gar Res Tes Gar Acc Total Allies 118 | . . . . 2 . . . . . . 1 . 2 2 . 5 6 7 16 29 . . 3 1 . 10 13 4 6 . 5 6 Largest Group 13 | . . . . 2 . . . . . . 1 1 2 3 . 2 2 2 3 13 6 3 2 1 . 4 4 2 2 . 3 2 Highest-Rated Group 690 | . . . . 38 . . . . . . 32 32 48 80 . 64 73 85 148 690 263 113 93 56 . 222 222 120 116 . 90 116 Highest-Rated Ally 156 | . . . . 31 . . . . . . 32 32 32 32 . 47 49 49 56 156 49 43 56 56 . 64 64 64 58 . 42 58 Total Orders 79 | . . . . . . . . . . . . . 7 6 2 . 4 4 5 3 . . 2 2 . 15 6 23 . . . . STAY 28 | . . . . . . . . . . . . . 4 4 . . . 3 . 2 . . 1 . . 5 4 5 . . . . FOLLOW 20 | . . . . . . . . . . . . . 3 2 . . . 1 . 1 . . 1 . . 5 2 5 . . . . EXPLORE 20 | . . . . . . . . . . . . . . . 1 . 2 . 4 . . . . 2 . 3 . 8 . . . . RETURN 11 | . . . . . . . . . . . . . . . 1 . 2 . 1 . . . . . . 2 . 5 . . . . Ally Attacks 574 | . . . . 3 . . . . . . . 3 4 8 . 35 30 30 59 176 38 9 8 10 . 25 41 30 28 . 24 13 Total Damage 17026 | . . . . 42 . . . . . . . 93 65 186 . 1033 983 1133 1772 4987 1075 276 335 250 . 681 1203 1178 788 . 456 490 Kills 80 | . . . . 1 . . . . . . . . . 2 . 9 4 3 5 25 6 1 1 2 . 3 4 7 1 . 3 3 Allies Corrupted 3 | . . . . . . . . . . . . . . . . . . . . . . . . . . . 3 . . . . . Allies Melted 3 | . . . . . . . . . . . . . . . . 1 . . 1 1 . . . . . . . . . . . . Intel | -11 -10 -10 -9 -9 -9 -8 -8 -8 -8 -8 -7 -7 -7 -7 -6 -6 -5 -5 -4 -4 -4 -4 -4 -4 -3 -3 -3 -3 -2 -2 -2 -1 ------- Run | Scr Mat Min Mat Min Exi Min Mat Gar Mat Gar Fac Gar Fac Gar Fac Gar Fac Gar Fac Ext Cet Arc Hub Gar Res Gar Qua Gar Res Tes Gar Acc Robot Analysis Total . | . . . . . . . . . . . . . . . . . . . . . . . . . . . . . . . . . Derelict Logs Recovered 3 | . . 1 . 2 . . . . . . . . . . . . . . . . . . . . . . . . . . . . Drone Launches 26 | . . . . . . . . . . . . . . . 2 . 2 . 5 . . . . 2 . 5 . 10 . . . . Drone Recoveries 14 | . . . . . . . . . . . . . . . 1 . 2 . 3 . . . . . . 3 . 5 . . . . Exploration | -11 -10 -10 -9 -9 -9 -8 -8 -8 -8 -8 -7 -7 -7 -7 -6 -6 -5 -5 -4 -4 -4 -4 -4 -4 -3 -3 -3 -3 -2 -2 -2 -1 ------------- Run | Scr Mat Min Mat Min Exi Min Mat Gar Mat Gar Fac Gar Fac Gar Fac Gar Fac Gar Fac Ext Cet Arc Hub Gar Res Gar Qua Gar Res Tes Gar Acc Turns Passed 37275 | 78 960 1167 1095 999 1405 1225 600 911 365 1109 298 327 402 903 846 2572 1168 3057 2572 1990 323 196 653 1296 312 1257 1201 2527 1174 453 1666 2168 Spaces Moved 13600 | 57 435 628 439 442 627 507 183 369 127 428 113 128 151 310 348 1027 391 1140 835 621 141 50 213 360 136 548 372 434 375 144 709 812 Core 6 | 6 . . . . . . . . . . . . . . . . . . . . . . . . . . . . . . . . Treads 10253 | . 174 628 439 442 627 507 183 369 127 428 113 128 151 310 348 145 6 429 371 34 141 50 213 360 136 548 372 434 375 144 709 812 Legs 2640 | 51 261 . . . . . . . . . . . . . . 882 385 711 350 . . . . . . . . . . . . . Wheels 701 | . . . . . . . . . . . . . . . . . . . 114 587 . . . . . . . . . . . . Hover . | . . . . . . . . . . . . . . . . . . . . . . . . . . . . . . . . . Flight . | . . . . . . . . . . . . . . . . . . . . . . . . . . . . . . . . . Fastest Speed 50 | 50 120 180 180 200 180 220 220 200 220 212 230 230 230 230 195 180 210 180 150 140 180 180 172 172 180 180 180 180 172 165 170 177 Average Speed 200 | 112 178 180 199 218 219 220 226 219 220 229 230 230 230 232 195 215 240 228 206 148 188 193 188 189 180 180 180 180 177 167 175 178 Slowest Speed 480 | 120 210 180 260 220 220 220 240 220 220 280 230 230 230 250 195 290 270 480 320 300 200 200 200 192 180 180 180 180 180 172 300 190 Overloaded Moves . | . . . . . . . . . . . . . . . . . . . . . . . . . . . . . . . . . Propulsion Burnouts . | . . . . . . . . . . . . . . . . . . . . . . . . . . . . . . . . . Robots Hopped . | . . . . . . . . . . . . . . . . . . . . . . . . . . . . . . . . . Cave-ins Triggered . | . . . . . . . . . . . . . . . . . . . . . . . . . . . . . . . . . Teleports 3 | . . . . . . . . . . . . . . . . . . . . . . . . . . . . . 1 . . 2 Exploration Rate (%) 48 | 5 59 102 47 99 89 97 22 46 15 62 3 30 5 48 8 86 15 71 30 70 79 97 29 59 5 71 51 53 20 16 63 34 Regions Visited 32 Branch Regions 10 Pre-discovered Areas 3 | . . 1 . 2 . . . . . . . . . . . . . . . . . . . . . . . . . . . . Known Exits Taken 17 | . . . 1 . . 1 1 . 1 . 1 . 1 . 1 . 1 . 1 1 1 1 1 . 1 . 1 . 1 1 . . Unknown Exits Taken 5 | 1 1 1 . 1 1 . . . . . . . . . . . . . . . . . . . . . . . . . . . Scrap Searched 3 | . . 1 . 1 . 1 . . . . . . . . . . . . . . . . . . . . . . . . . . Spaces Dug 146 | . . . . . . . 4 5 1 . 1 . 4 1 7 . 11 . 29 2 . . 12 15 2 . 12 . 15 2 . 23 Terrain Destroyed 955 | . . . 6 . . 13 4 100 1 14 1 27 4 45 7 11 15 22 111 7 1 73 15 30 4 41 107 102 30 4 9 151 Melee 125 | . . . . . . . 4 . 1 . 1 . 4 1 7 . 11 . 29 2 . . 12 . 2 . 11 . 15 2 . 23 Projectile 155 | . . . . . . . . . . . . . . 1 . . 3 2 25 5 1 8 3 8 2 1 23 14 15 2 9 33 AOE 675 | . . . 6 . . 13 . 100 . 14 . 27 . 43 . 11 1 20 57 . . 65 . 22 . 40 73 88 . . . 95 Terrain Rammed . | . . . . . . . . . . . . . . . . . . . . . . . . . . . . . . . . . Walls Destroyed . | . . . . . . . . . . . . . . . . . . . . . . . . . . . . . . . . . Machines Disabled . | . . . . . . . . . . . . . . . . . . . . . . . . . . . . . . . . . Actions | -11 -10 -10 -9 -9 -9 -8 -8 -8 -8 -8 -7 -7 -7 -7 -6 -6 -5 -5 -4 -4 -4 -4 -4 -4 -3 -3 -3 -3 -2 -2 -2 -1 --------- Run | Scr Mat Min Mat Min Exi Min Mat Gar Mat Gar Fac Gar Fac Gar Fac Gar Fac Gar Fac Ext Cet Arc Hub Gar Res Gar Qua Gar Res Tes Gar Acc Total 21651 | 68 572 661 587 463 655 567 324 442 189 512 149 154 202 447 487 1289 569 1455 1475 1624 175 127 409 890 185 791 771 2131 723 290 994 1274 Wait 4588 | . 75 11 29 8 . 11 45 4 16 17 16 11 23 82 79 96 84 86 317 675 4 59 128 393 16 160 210 1561 93 69 99 111 Move 13562 | 56 434 627 438 441 626 506 182 367 126 426 112 126 150 308 347 1025 391 1138 834 620 140 49 213 358 136 546 372 432 374 144 707 811 Hop . | . . . . . . . . . . . . . . . . . . . . . . . . . . . . . . . . . Pick Up 513 | 6 19 8 31 1 24 11 25 15 9 6 8 . 8 7 10 29 12 33 38 26 6 . 3 32 6 9 21 25 27 7 17 34 Fast Attach 138 | 6 3 . 2 3 1 2 2 4 2 1 1 1 . . 3 3 1 14 8 10 1 . 1 1 1 1 6 5 15 5 18 17 Attach 273 | . 3 2 8 . . 4 10 4 2 4 2 . 3 6 4 10 10 13 48 15 2 3 3 12 2 5 13 13 19 4 15 34 Detach 69 | . . . . . . . . 1 1 . 1 . . . . 1 1 4 14 6 . . . 2 1 2 1 3 3 2 5 21 Swap 596 | . 2 1 12 . 1 3 7 9 6 11 4 4 3 11 12 18 18 26 54 56 6 4 20 29 13 27 53 26 62 21 14 63 Drop 451 | . 6 8 26 3 3 4 20 16 11 4 2 1 7 4 13 17 11 31 21 38 5 . 5 19 4 8 14 27 40 11 38 34 Fire 936 | . 30 4 41 7 . 26 18 12 14 26 . 7 . 20 7 51 25 76 100 38 11 12 19 38 4 16 47 29 61 21 63 113 Melee 243 | . . . . . . . 15 10 2 7 2 . 8 8 12 1 15 2 38 5 . . 15 4 2 3 28 7 22 3 . 34 Ram 1 | . . . . . . . . . . . . . . . . . . . . . . . . . . . . . . 1 . . Kick 1 | . . . . . . . . . . . . . . . . . 1 . . . . . . . . . . . . . . . Crush 10 | . . . . . . . . . . . . . . . . . . . . 1 . . 1 . . . . . 6 2 . . Escape Stasis 132 | . . . . . . . . . . 10 . 4 . . . 37 . 30 . 8 . . . 2 . 14 4 3 . . 18 2 Rewire 138 | . . . . . . . . . . . 1 . . 1 . 1 . 2 3 126 . . 1 . . . 2 . 1 . . . Trap . | . . . . . . . . . . . . . . . . . . . . . . . . . . . . . . . . . Miscellaneous . | . . . . . . . . . . . . . . . . . . . . . . . . . . . . . . . . . Route ------- -11/Scrapyard -10/Materials (discovered 2 exits: *Mat / *Min) -10/Mines (discovered 2 exits: *Mat x2) -9/Materials (discovered 3 exits: *Mat x2 / *Min) -9/Mines (discovered 4 exits: *Mat x2 / [*Exi] / [*Zio]) -9/Exiles (discovered 2 exits: *Min x2) -8/Mines (discovered 2 exits: *Mat x2) -8/Materials -8/Garrison -8/Materials -8/Garrison (discovered 3 exits: *Fac x3) -7/Factory -7/Garrison -7/Factory (discovered 2 exits: Fac / Gar) -7/Garrison -6/Factory (discovered 4 exits: *Fac / Low x2 / Gar) -6/Garrison (discovered 3 exits: *Fac x3) -5/Factory (discovered 2 exits: Fac / Gar) -5/Garrison (discovered 2 exits: *Fac x2) -4/Factory (discovered 5 exits: *Res / Upp x2 / *Ext x2) -4/Extension (discovered 3 exits: *Res x2 / *Cet) -4/Cetus -4/Archives (discovered 2 exits: *Res / *Hub) -4/Hub_04(d) (discovered 5 exits: *Res x4 / Gar) -4/Garrison -3/Research -3/Garrison (discovered 3 exits: *Qua x3) -3/Quarantine (discovered 2 exits: *Res / Gar) -3/Garrison -2/Research -2/Testing -2/Garrison (discovered 3 exits: *Acc x3) -1/Access To Fleet Rendezvous History --------- Turn | Location | Event 4 | -11/Scrapyard | Discovered new exit (range 15) 79 | -11/Scrapyard | Entered Materials 559 | -10/Materials | Discovered new exit (range 5) 569 | -10/Materials | Build established: Hauler-Mutant 724 | -10/Materials | Lost 3 parts (1n2w) 844 | -10/Materials | Discovered new exit (range 8) 1039 | -10/Materials | Entered Mines 1055 | -10/Mines | Found the Drone Emporium 1065 | -10/Mines | Found Prototype Device 1114 | -10/Mines | Met a Derelict bent on vengeance 1483 | -10/Mines | Learned location of Storage (-7) 1807 | -10/Mines | Learned 2 Materials zone layouts 1812 | -10/Mines | Discovered new exit (range 8) 2012 | -10/Mines | Discovered new exit (range 8) 2206 | -10/Mines | Entered Materials 2206 | -9/Materials | Evolved 2 slots: Utility x2 2627 | -9/Materials | Discovered new exit (range 4) 3032 | -9/Materials | Identified exit to Mines 3169 | -9/Materials | Discovered new exit (range 7) 3301 | -9/Materials | Entered Mines 3322 | -9/Mines | Discovered new exit (range 8) 3393 | -9/Mines | Deemed a non-threat by the Exiles lab entrance 3393 | -9/Mines | Discovered new exit (range 5) 3440 | -9/Mines | Discovered new exit (range 10) 3647 | -9/Mines | A Derelict revealed a hidden shortcut to a safe place 3770 | -9/Mines | A weapon hastily lodged in a ceiling crevice suddenly fell to the ground 4300 | -9/Mines | Entered Exiles 4372 | -9/Exiles | Discovered new exit (range 14) 4451 | -9/Exiles | Met 8R-AWN 4486 | -9/Exiles | Met EX-HEX 4613 | -9/Exiles | Met EX-DEC 4649 | -9/Exiles | Visited The Gauntlet 4919 | -9/Exiles | Met EX-BIN 5439 | -9/Exiles | Discovered new exit (range 12) 5705 | -9/Exiles | Entered Mines 6610 | -8/Mines | Discovered new exit (range 9) 6742 | -8/Mines | Core integrity fell below 50% 6874 | -8/Mines | Discovered new exit (range 10) 6895 | -8/Mines | Identified exit to Materials 6930 | -8/Mines | Entered Materials 6930 | -8/Materials | Evolved 2 slots: Utility x2 7527 | -8/Materials | Identified exit to Garrison 7530 | -8/Materials | Entered Garrison 7578 | -8/Garrison | Triggered checkpoint 7684 | -8/Garrison | Triggered checkpoint 7726 | -8/Garrison | Triggered checkpoint 7770 | -8/Garrison | Discovered new exit (range 12) 7805 | -8/Garrison | Installed Relay Interface Framework 7912 | -8/Garrison | Triggered checkpoint 8053 | -8/Garrison | Garrison Relay disabled 8441 | -8/Garrison | Entered Materials 8570 | -8/Materials | Identified Bomb Drone Bay 8800 | -8/Materials | Identified exit to Garrison 8806 | -8/Materials | Entered Garrison 8960 | -8/Garrison | Triggered checkpoint 9017 | -8/Garrison | Destroyed 10 combat bots 9126 | -8/Garrison | Triggered checkpoint 9138 | -8/Garrison | Core integrity fell below 50% 9195 | -8/Garrison | Lost 3 parts (1p1n1w) 9294 | -8/Garrison | Garrison Relay disabled 9360 | -8/Garrison | Discovered new exit (range 10) 9466 | -8/Garrison | Triggered checkpoint 9572 | -8/Garrison | Discovered new exit (range 15) 9601 | -8/Garrison | Build established: Bothacker-Mutant 9748 | -8/Garrison | Triggered checkpoint 9858 | -8/Garrison | Discovered new exit (range 13) 9904 | -8/Garrison | Expanded RIF knowledge: Robot Detection 9915 | -8/Garrison | Entered Factory 9915 | -7/Factory | Evolved 2 slots: Utility x2 10029 | -7/Factory | Fabricated Hcp. Storage Unit (x1) 10173 | -7/Factory | Identified exit to Garrison 10213 | -7/Factory | Entered Garrison 10213 | -7/Garrison | Accompanied by 1 ally 10225 | -7/Garrison | Expanded RIF knowledge: Threat Obfuscation 10374 | -7/Garrison | Triggered checkpoint 10474 | -7/Garrison | Discovered new exit (range 10) 10540 | -7/Garrison | Entered Factory 10859 | -7/Factory | Discovered new exit (range 18) 10938 | -7/Factory | Identified exit to Garrison 10942 | -7/Factory | Entered Garrison 10942 | -7/Garrison | Accompanied by 1 ally 11082 | -7/Garrison | Triggered checkpoint 11320 | -7/Garrison | Triggered checkpoint 11326 | -7/Garrison | Triggered checkpoint 11602 | -7/Garrison | Discovered new exit (range 15) 11670 | -7/Garrison | Lost 3 parts (2u1w) 11675 | -7/Garrison | Destroyed 7 combat bots 11790 | -7/Garrison | Expanded RIF knowledge: Coupler Efficiency 11845 | -7/Garrison | Entered Factory 11845 | -6/Factory | Evolved 2 slots: Propulsion x1, Weapon x1 12174 | -6/Factory | Discovered new exit (range 20) 12239 | -6/Factory | Identified exit to Lower Caves 12264 | -6/Factory | Build established: Botlord-Mutant 12688 | -6/Factory | Identified exit to Garrison 12691 | -6/Factory | Entered Garrison 12750 | -6/Garrison | Triggered checkpoint 12822 | -6/Garrison | Garrison Relay disabled 12952 | -6/Garrison | Triggered checkpoint 13086 | -6/Garrison | Lost 3 parts (1p2n) 13200 | -6/Garrison | Triggered checkpoint 13301 | -6/Garrison | Discovered new exit (range 14) 13360 | -6/Garrison | Triggered checkpoint 13564 | -6/Garrison | Garrison Relay disabled 13844 | -6/Garrison | Triggered checkpoint 13970 | -6/Garrison | Triggered checkpoint 14019 | -6/Garrison | Discovered new exit (range 14) 14259 | -6/Garrison | Garrison Relay disabled 14604 | -6/Garrison | Discovered new exit (range 10) 14690 | -6/Garrison | Triggered checkpoint 14782 | -6/Garrison | Garrison Relay disabled 14956 | -6/Garrison | Build established: Botlord-Gunner 15250 | -6/Garrison | Expanded RIF knowledge: Command Fork 15263 | -6/Garrison | Entered Factory 15263 | -5/Factory | Accompanied by 1 ally 15263 | -5/Factory | Evolved 2 slots: Utility x2 15705 | -5/Factory | Discovered new exit (range 98) 15907 | -5/Factory | Found Prototype Device 16305 | -5/Factory | Garrison activated, responded to threat 16431 | -5/Factory | Identified exit to Garrison 16431 | -5/Factory | Entered Garrison 16564 | -5/Garrison | Triggered checkpoint 16692 | -5/Garrison | Identified Exp. Terrain Scanner 16941 | -5/Garrison | Build established: Botlord-Mutant 17062 | -5/Garrison | Spotted B-75 Beast 17074 | -5/Garrison | Triggered checkpoint 17520 | -5/Garrison | Allies destroyed B-75 Beast 17606 | -5/Garrison | Triggered checkpoint 17616 | -5/Garrison | Triggered checkpoint 17732 | -5/Garrison | Discovered new exit (range 12) 17824 | -5/Garrison | Triggered checkpoint 17881 | -5/Garrison | Garrison Relay disabled 18124 | -5/Garrison | Discovered new exit (range 10) 18145 | -5/Garrison | Build established: Botlord-Tank 18300 | -5/Garrison | Triggered checkpoint 18493 | -5/Garrison | Build established: Botlord-Mutant 18788 | -5/Garrison | Triggered checkpoint 18869 | -5/Garrison | Garrison Relay disabled 18998 | -5/Garrison | Expanded RIF knowledge: Patrol Navigation 19488 | -5/Garrison | Entered Factory 19488 | -4/Factory | Evolved 2 slots: Utility x2 19781 | -4/Factory | First assault squad dispatched 19853 | -4/Factory | Fabricated Hcp. Storage Unit (x1) 19909 | -4/Factory | Fabricated Hcp. Storage Unit (x1) 19965 | -4/Factory | Fabricated Hcp. Storage Unit (x1) 20348 | -4/Factory | Lost 3 parts (1n2w) 20579 | -4/Factory | P-70 Sage assimilated allied Sentinel 7a 20857 | -4/Factory | Found Quantum Capacitor 20973 | -4/Factory | System corruption reached 10% 21039 | -4/Factory | Lost 3 parts (1p2n) 21140 | -4/Factory | Discovered new exit (range 9) 21496 | -4/Factory | Identified exit to Upper Caves 21496 | -4/Factory | Identified exit to Extension 21696 | -4/Factory | Lost 5 parts (1p1n3w) 22060 | -4/Factory | Entered Extension 22060 | -4/Extension | Accompanied by 1 ally 22144 | -4/Extension | Rescued A7 22355 | -4/Extension | Rescued a captive Derelict 22356 | -4/Extension | Rescued a captive Derelict 22590 | -4/Extension | Rescued a captive Derelict 22591 | -4/Extension | Rescued a captive Derelict 22628 | -4/Extension | Rescued a captive Derelict 22640 | -4/Extension | Spotted B-86 Titan 22653 | -4/Extension | Spotted B-86 Titan 22674 | -4/Extension | Allies destroyed B-86 Titan 22697 | -4/Extension | Destroyed B-86 Titan 22701 | -4/Extension | Extracted ID and sensor layout for unrecognized location from A7's data core 22744 | -4/Extension | Discovered new exit (range 3) 22752 | -4/Extension | Identified exit to Research 22840 | -4/Extension | Rescued a captive Derelict 22980 | -4/Extension | Core integrity fell below 50% 23108 | -4/Extension | Rescued a captive Derelict 23355 | -4/Extension | Discovered exit to Research (range 10) 23356 | -4/Extension | Discovered new exit (range 6) 23386 | -4/Extension | Disrupted transfer network 23420 | -4/Extension | Identified exit to Cetus 23523 | -4/Extension | Build established: Botlord-Gunner 24050 | -4/Extension | Entered Cetus 24050 | -4/Cetus | Accompanied by 6 allies 24075 | -4/Cetus | Spotted Cetus Guard 24075 | -4/Cetus | Spotted Cetus Guard 24079 | -4/Cetus | Spotted Cetus Guard 24085 | -4/Cetus | Allies destroyed Cetus Guard 24085 | -4/Cetus | Spotted Cetus Guard 24090 | -4/Cetus | Allies destroyed Cetus Guard 24093 | -4/Cetus | Allies destroyed Cetus Guard 24096 | -4/Cetus | Destroyed Cetus Guard 24333 | -4/Cetus | Discovered new exit (range 20) 24369 | -4/Cetus | Identified exit to Archives 24373 | -4/Cetus | Entered Archives 24373 | -4/Archives | Accompanied by 3 allies 24414 | -4/Archives | Met Zhirov 24420 | -4/Archives | Reinforcements dispatched to Archives 24428 | -4/Archives | Unable to access archive contents 24465 | -4/Archives | Reinforcements dispatched to Archives 24467 | -4/Archives | Zhirov warped through subspace 24467 | -4/Archives | Discovered exit to Research (range 17) 24485 | -4/Archives | Zhirov detonated Archives 24485 | -4/Archives | Discovered new exit (range 18) 24501 | -4/Archives | Destroyed 17 combat bots 24514 | -4/Archives | Identified exit to Hub_04(d) 24516 | -4/Archives | Lost 3 parts (1p2w) 24569 | -4/Archives | Entered Hub_04(d) 24683 | -4/Hub_04(d) | Discovered exit to Research (range 24) 25210 | -4/Hub_04(d) | Core integrity fell below 20% 25222 | -4/Hub_04(d) | Identified exit to Garrison 25222 | -4/Hub_04(d) | Entered Garrison 25405 | -4/Garrison | Found Fusion Bomb Launcher 25409 | -4/Garrison | Found Adv. Powered Armor 25413 | -4/Garrison | Found Adv. Powered Armor 25415 | -4/Garrison | Found Adv. Powered Armor 25516 | -4/Garrison | Lost 3 parts (2u1w) 25538 | -4/Garrison | Build established: Botlord-Tank 25552 | -4/Garrison | Triggered checkpoint 25565 | -4/Garrison | Garrison Relay disabled 26040 | -4/Garrison | Triggered checkpoint 26040 | -4/Garrison | Triggered checkpoint 26078 | -4/Garrison | Triggered checkpoint 26092 | -4/Garrison | Triggered checkpoint 26217 | -4/Garrison | Discovered exit to Research (range 8) 26240 | -4/Garrison | Expanded RIF knowledge: Coupler Efficiency 26308 | -4/Garrison | Triggered checkpoint 26397 | -4/Garrison | Garrison Relay disabled 26518 | -4/Garrison | Entered Research 26518 | -3/Research | Evolved 2 slots: Propulsion x1, Weapon x1 26828 | -3/Research | Identified exit to Garrison 26830 | -3/Research | Entered Garrison 26928 | -3/Garrison | Triggered checkpoint 26958 | -3/Garrison | Garrison Relay disabled 27117 | -3/Garrison | Triggered checkpoint 27176 | -3/Garrison | Spotted B-86 Titan 27186 | -3/Garrison | Allies destroyed B-86 Titan 27314 | -3/Garrison | Discovered new exit (range 10) 27374 | -3/Garrison | Triggered checkpoint 27500 | -3/Garrison | Discovered new exit (range 10) 27754 | -3/Garrison | Discovered new exit (range 8) 27796 | -3/Garrison | Expanded RIF knowledge: Structural Interface 28087 | -3/Garrison | Entered Quarantine 28087 | -3/Quarantine | Accompanied by 2 allies 28173 | -3/Quarantine | Found Alien Artifact 28318 | -3/Quarantine | Identified Subatomic Replicator 28472 | -3/Quarantine | Build established: Botlord-Mutant 28529 | -3/Quarantine | System corruption reached 10% 28605 | -3/Quarantine | Found Core Cannon 28690 | -3/Quarantine | Found Alien Artifact 28729 | -3/Quarantine | Found Alien Artifact 28824 | -3/Quarantine | Identified Phase Redirector 28824 | -3/Quarantine | Identified Core Reset Matrix 28836 | -3/Quarantine | Found Matter Drive 28873 | -3/Quarantine | First assault squad dispatched 28955 | -3/Quarantine | Found Prototype Device 28955 | -3/Quarantine | Identified Adv. Kinecellerator 28958 | -3/Quarantine | Found Adv. Kinecellerator 29000 | -3/Quarantine | Discovered new exit (range 9) 29032 | -3/Quarantine | Found Alien Artifact 29036 | -3/Quarantine | Found Alien Artifact 29039 | -3/Quarantine | Found Alien Artifact 29042 | -3/Quarantine | Found Alien Artifact 29057 | -3/Quarantine | Found Alien Artifact 29063 | -3/Quarantine | Found Alien Artifact 29065 | -3/Quarantine | Found Alien Artifact 29129 | -3/Quarantine | Identified exit to Garrison 29287 | -3/Quarantine | Garrison activated, responded to threat 29288 | -3/Quarantine | Entered Garrison 29288 | -3/Garrison | Accompanied by 2 allies 29916 | -3/Garrison | Triggered checkpoint 30451 | -3/Garrison | Garrison Relay disabled 31026 | -3/Garrison | Spotted B-86 Titan 31045 | -3/Garrison | Triggered checkpoint 31048 | -3/Garrison | Triggered checkpoint 31059 | -3/Garrison | Destroyed B-86 Titan 31076 | -3/Garrison | Discovered new exit (range 44) 31192 | -3/Garrison | Triggered checkpoint 31333 | -3/Garrison | Expanded RIF knowledge: Program Shield 31420 | -3/Garrison | Triggered checkpoint 31455 | -3/Garrison | Garrison Relay disabled 31815 | -3/Garrison | Entered Research 31815 | -2/Research | Evolved 2 slots: Utility x2 32295 | -2/Research | Identified Dimensional Node Initializer (x3) 32647 | -2/Research | Spotted B-90 Cyclops 32648 | -2/Research | Identified Transdimensional Reconstructor 32648 | -2/Research | Warped through subspace 32661 | -2/Research | Identified Hpw. Transdimensional Reconstructor (x3) 32668 | -2/Research | Initialized slip node 32732 | -2/Research | Found Prototype Device 32732 | -2/Research | Identified EM Disruption Field 32815 | -2/Research | First assault squad dispatched 32947 | -2/Research | Discovered new exit (range 7) 32988 | -2/Research | Identified exit to Testing 32989 | -2/Research | Entered Testing 33065 | -2/Testing | Found Prototype Ballistic Gun 33065 | -2/Testing | Identified Hyp. Multirail 33173 | -2/Testing | Identified exit to Garrison 33218 | -2/Testing | Found Prototype Device 33218 | -2/Testing | Identified Exp. Force Field 33265 | -2/Testing | System corruption reached 10% 33339 | -2/Testing | Garrison activated, responded to threat 33419 | -2/Testing | Build established: Botlord-Gunner 33442 | -2/Testing | Entered Garrison 33527 | -2/Garrison | Spotted B-90 Cyclops 33568 | -2/Garrison | Destroyed B-90 Cyclops 33594 | -2/Garrison | Triggered checkpoint 33612 | -2/Garrison | Triggered checkpoint 33678 | -2/Garrison | Lost 4 parts (1p1n2u) 33733 | -2/Garrison | Discovered new exit (range 14) 33922 | -2/Garrison | Triggered checkpoint 33984 | -2/Garrison | Destroyed 7 combat bots 33991 | -2/Garrison | Lost 7 parts (1n4u2w) 34046 | -2/Garrison | Discovered new exit (range 15) 34196 | -2/Garrison | Triggered checkpoint 34235 | -2/Garrison | Triggered checkpoint 34334 | -2/Garrison | Discovered new exit (range 10) 34358 | -2/Garrison | Expanded RIF knowledge: Signal Jamming 34416 | -2/Garrison | Build established: Hauler-Tank 34468 | -2/Garrison | Triggered checkpoint 34506 | -2/Garrison | Garrison Relay disabled 34823 | -2/Garrison | Build established: Botlord-Tank 35108 | -2/Garrison | Entered Access 35108 | -1/Access | Evolved 2 slots: Power x1, Utility x1 35150 | -1/Access | Found Quantum Capacitor 35337 | -1/Access | Build established: Botlord-Mutant 35358 | -1/Access | First assault squad dispatched 35607 | -1/Access | Energy Cycler disabled 35700 | -1/Access | Destroyed 12 combat bots 35727 | -1/Access | Found Prototype Launcher 35754 | -1/Access | Identified exit to Garrison 35835 | -1/Access | Spotted B-99 Colossus 35836 | -1/Access | Warped through subspace 35837 | -1/Access | Warped through subspace 36091 | -1/Access | Found Enh. Force Lance 36173 | -1/Access | Build established: Botlord-Tank 36325 | -1/Access | Identified exit to Command 37214 | -1/Access | Used Core Reset Matrix 37221 | -1/Access | Discovered new exit (range 19) 37255 | -1/Access | Spotted B-99 Colossus 37258 | -1/Access | Used Subatomic Replicator to replicate Core Cannon 37268 | -1/Access | Destroyed B-99 Colossus 37272 | -1/Access | Spotted B-99 Colossus 37276 | *** | Heading to fleet! Last Messages --------------- 37259_ Acquired Core Cannon. 37259_ Slug penetrates Sealed Heavy Doors. 37260_ B-99 Colossus activates siege mode. 37262_ Slug penetrates Sealed Heavy Doors. 37263_ Acquired Core Cannon. 37265_ Beam penetrates Sealed Heavy Doors. 37265_ Beam penetrates B-99 Colossus. 37266_ Penetrated by Slug. 37266_ Slug penetrates Main Access Shell. 37266_ Penetrated by Slug. 37268_ Beam penetrates B-99 Colossus. 37268_ B-99 Colossus destroyed. 37272_ Beam penetrates Main Access Shell. 37272_ Beam penetrates Sealed Heavy Doors. 37272_ Beam penetrates B-99 Colossus. 37272_ Destroyed Prototype Ballistic Gun. 37272_ Beam penetrates B-99 Colossus. 37272_ U-05 Engineer builds a Wall. 37273_ Slug penetrates Sealed Heavy Doors. [Achievement: Home At Last?] Map ----- +----------------------------------------------------+ | ?""?"??# ?? ?# """?""?" ?? ??????? | | ?? # ? ??? ?""""""" ? # ?????? | | ? ? # ? ? ? #?? ""? ???? ?? #? ?????? | | ? ? #? ? # ? "?" "?"? #? ????? | | ? ??? ? ? ? ? # ?? ? ?? ??? #?? ? ??? | | ??####"##?? ? ? #????? ? ?? ?? #? ?????? | | #?# ? ? #?? ? ? ?+ ?? ? # ??? ? | | ? ?? ""? ""?? #? ?##?"?##?#????#??? ? ?? | | ? [% ? # ??"??"" ?#? ? ## ######? ##??????##? | | ?? !? ##?#?#?##?"### #?###?#### #?# ? ?+? | | ? ?########?# ? ##?#### ??# ? ???? | | #?? ???##?####### ###??##? ?#? ???? | | #?#?# ##?###?##?#?# ?#??### ??#? ? ?#? | | ###?# #??#?##?#?### ?##?#?##??#?# ?????? | | ###?# ###?###?##### B? % ?###?###? ?## ? ??? | | ##### ?###??#?####??B ?#?##?## ?###?#?#??? | | ##### ?##?##???##?#? #???###???######??? | | ##### ####??#?#####?" " " ""###??##? ########?#? | | ?#### ####?#?##?#?#"" " " """####### ?## ? ??? | | #### #???#######??" " """??#####? ?# ? ? | | ""!###?#???####""" """?###### ## ??? ?? | | T"!##########?# #????#? #? ? ??? | | #### ![" ######## " ""? ##??### ?????? ?? ?? | | #?######### ; " " ###?#?#? ##?????? ? | | #?#####?############ "" ##?##?# ?##? ? | | ###?##?#?#?#???##??# " "@ " ###???# ##? ? | | #?###########?#?#?## " "? ##?###? ?#?? ?? | | #####??#######?##### """""" #####?# ?#???? ??? ? | | ######?####?######## ? ? ?##???# #? ?? | | ###?##?############# ? ? #####?# ?# ? ? ? | | ##?#########?### ? #####?? #?#??#?#?#? | | ?? #?###############"" ? ?#???### ? ? ????? | | # #########?##?####"" ? #####??? ? ? ??? ? | | # ###########??####"" ?###?##???????#?##?#? | | #? ########?###?#?#?T ?##??#?# #???# ? ?? | | #? ?##?#?###########"" ? ?##?##? ?##??# ? | | # #####?#########?#"? ? ####??? ?#?##??? "? | | ?? ?#####?####?#####"" ####?## ?#???? ?"?" | | ? ? ??? ? ??? ? ? ? ? ? ?#??? ??"" | | ? ? ? ? ? ? ? ? ?? ?#??# ??? | | ###+########?##########???#?? #?######?#? ? | | #+?## ?? ? ? ##??#??########## ######?#?#????? | | ???# ? #######??#####?##?# ? ?? ? ? | | ? # """"""???###??#?####?###? # ?? ??? # ?? ? | | ? # "?""""??######?##??#?#### # ? ??? ?? | | ?? ?# """"""? #### ??#####? # "?" #?????? | | ? ? # ???""" #?##???? ??#?#### ? ?"?"?? ##????? | | ? ??????""""???## + ??+ ? + ? ? ?? ??????? | | ????? #? ??? ? #?###?? ? ? ??????? | | ? ??# ? ? ## #? ? ##?#? ? ????????? | +----------------------------------------------------+ Best States ------------- Heat Dissipation 70 Coolant Potential 100 Energy Generation 45 Energy Capacity 1600 Matter Stores 524 Matter Capacity 550 Sight Range 20 Robot Scan Range 16 Terrain Scan Range 30 Terrain Scan Density 210 Jamming Range 16 EM Shielding 3 Corruption Prevention 20 Armor Coverage 3300 Resistance: KI 20 Resistance: TH 30 Core Shielding 30 Power Shielding 66 Propulsion Shielding 33 Weapon Shielding 66 Phase Shifting 10 Evasion (%) 50 Targeting Accuracy 8 Melee Accuracy 8 Target Analysis 8 Core Analysis 10 Recoil Reduction 4 Particle Charging 25 Kinecelleration 50 Offensive Hacking 12 Relay Coupler Types 112 Relay Coupler Value 4 Item Schematics ----------------- None Robot Schematics ------------------ None Fabricated ------------ Hcp. Storage Unit | x1 | -7/Factory Hcp. Storage Unit | x1 | -4/Factory Hcp. Storage Unit | x1 | -4/Factory Hcp. Storage Unit | x1 | -4/Factory Alien Tech Used ----------------- Matter Drive Transdimensional Reconstructor Dimensional Node Initializer High-powered Transdimensional Reconstructor Core Reset Matrix Core Cannon Subatomic Replicator Achievements -------------- Home At Last? Infiltrator Challenges ------------ None Game ------ Seed MakeshiftTitaniumBay Manual? 0 Play Time 07:30:50 Cumulative 103.8 hours Start 2020.12.31 @ 02:11:18 End 2021.01.02 @ 00:09:03 Sessions 3 Manual Loads 0 Difficulty Rogue Special Mode None Game No. 23 Rogue 23 Adventurer 0 Explorer 0 Win Type 2 Total 7 Types 4/1/1/1/0/0/0/0/0 Lore% 43 Gallery% 64 Achievement% 51 Wizard Run 0 Options --------- ASCII 0 Keyboard 0 Movement Numpad Keybinds 0 Fullscreen 1 Font 18/TerminusBold Map View 76x50 Tactical HUD 1 Map Filters NONE Filters NONE Steam 1 RUN: 1eed260a-9c67-43b9-a145-1c30c335bdea